[Event "*** Titled Tuesday Blitz"]
[Site "Chess.com"]
[Date "2020.05.12"]
[Round "2"]
[White "vanyakuba"]
[Black "beto-betun"]
[Result "1-0"]
[WhiteElo "2406"]
[BlackElo "2113"]
[TimeControl "180+1"]
[EndTime "10:18:40 PDT"]
[Termination "vanyakuba won by checkmate"]

1. e4 {[%clk 0:01:31]} 1... c5 {[%clk 0:02:56.6]} 2. c3 {[%clk 0:01:30.1]} 2...
d5 {[%clk 0:02:55.9]} 3. exd5 {[%clk 0:01:30.1]} 3... Qxd5 {[%clk 0:02:56.5]} 4.
d4 {[%clk 0:01:31]} 4... Nc6 {[%clk 0:02:55.9]} 5. Nf3 {[%clk 0:01:31.6]} 5...
Nf6 {[%clk 0:02:53.6]} 6. a3 {[%clk 0:01:30.2]} 6... Bg4 {[%clk 0:02:47.6]} 7.
Be2 {[%clk 0:01:30]} 7... e6 {[%clk 0:02:46.7]} 8. h3 {[%clk 0:01:28.4]} 8...
Bxf3 {[%clk 0:02:39.5]} 9. Bxf3 {[%clk 0:01:27.6]} 9... Qd7 {[%clk 0:02:39.3]}
10. dxc5 {[%clk 0:01:25.1]} 10... Bxc5 {[%clk 0:02:36.8]} 11. b4 {[%clk
0:01:22.4]} 11... Qxd1+ {[%clk 0:02:33.8]} 12. Kxd1 {[%clk 0:01:22.4]} 12...
Bxf2 {[%clk 0:02:28.3]} 13. Ke2 {[%clk 0:01:14.5]} 13... Bg3 {[%clk 0:02:23.5]}
14. Nd2 {[%clk 0:01:12.8]} 14... O-O {[%clk 0:02:13]} 15. Bb2 {[%clk 0:01:11.7]}
15... Rad8 {[%clk 0:02:05.2]} 16. Nb3 {[%clk 0:01:09]} 16... Ne5 {[%clk
0:01:38]} 17. Bxb7 {[%clk 0:01:02.3]} 17... Nc4 {[%clk 0:01:37.6]} 18. Bc1
{[%clk 0:00:47.8]} 18... Nd5 {[%clk 0:01:26.8]} 19. Bxd5 {[%clk 0:00:34.7]}
19... Rxd5 {[%clk 0:01:27.7]} 20. Rd1 {[%clk 0:00:28.5]} 20... Rfd8 {[%clk
0:01:26.5]} 21. Rxd5 {[%clk 0:00:28.3]} 21... Rxd5 {[%clk 0:01:27.4]} 22. Nd2
{[%clk 0:00:25.3]} 22... Nxd2 {[%clk 0:00:56.9]} 23. Bxd2 {[%clk 0:00:26.2]}
23... Be5 {[%clk 0:00:50.3]} 24. Rc1 {[%clk 0:00:25.8]} 24... Rd7 {[%clk
0:00:35.5]} 25. c4 {[%clk 0:00:23.5]} 25... h6 {[%clk 0:00:35.5]} 26. Bc3 {[%clk
0:00:11]} 26... Bf4 {[%clk 0:00:27.2]} 27. Rd1 {[%clk 0:00:09.1]} 27... Rc7
{[%clk 0:00:23.3]} 28. c5 {[%clk 0:00:08.9]} 28... g5 {[%clk 0:00:19.3]} 29.
Rd8+ {[%clk 0:00:08.6]} 29... Kh7 {[%clk 0:00:19.4]} 30. Kd3 {[%clk 0:00:09.1]}
30... Kg6 {[%clk 0:00:19.3]} 31. Kc4 {[%clk 0:00:09.1]} 31... Be3 {[%clk
0:00:17]} 32. Bd4 {[%clk 0:00:08.4]} 32... Bf4 {[%clk 0:00:14.1]} 33. b5 {[%clk
0:00:07.7]} 33... e5 {[%clk 0:00:11.5]} 34. Bf2 {[%clk 0:00:05.1]} 34... e4
{[%clk 0:00:11.6]} 35. Re8 {[%clk 0:00:05.1]} 35... e3 {[%clk 0:00:11.3]} 36.
Bxe3 {[%clk 0:00:05]} 36... Bxe3 {[%clk 0:00:12.2]} 37. Rxe3 {[%clk 0:00:05.6]}
37... Kf5 {[%clk 0:00:12.4]} 38. c6 {[%clk 0:00:05.6]} 38... Kf4 {[%clk
0:00:12]} 39. Re8 {[%clk 0:00:05.1]} 39... f5 {[%clk 0:00:12]} 40. Kc5 {[%clk
0:00:05.3]} 40... Kg3 {[%clk 0:00:12.2]} 41. Kd6 {[%clk 0:00:05.6]} 41... Rf7
{[%clk 0:00:10.4]} 42. c7 {[%clk 0:00:05.1]} 42... Rxc7 {[%clk 0:00:09.9]} 43.
Kxc7 {[%clk 0:00:06]} 43... Kxg2 {[%clk 0:00:10.6]} 44. Kb7 {[%clk 0:00:05.5]}
44... f4 {[%clk 0:00:10.6]} 45. Kxa7 {[%clk 0:00:05.9]} 45... Kxh3 {[%clk
0:00:10.9]} 46. b6 {[%clk 0:00:06.4]} 46... g4 {[%clk 0:00:11.8]} 47. b7 {[%clk
0:00:07]} 47... g3 {[%clk 0:00:12.7]} 48. b8=Q {[%clk 0:00:07.4]} 48... g2
{[%clk 0:00:12.2]} 49. Rg8 {[%clk 0:00:07.9]} 49... f3 {[%clk 0:00:11.5]} 50.
Qg3# {[%clk 0:00:08.1]} 1-0

[Event "*** Titled Tuesday Blitz"]
[Site "Chess.com"]
[Date "2020.05.12"]
[Round "2"]
[White "Duhless"]
[Black "DenishevM"]
[Result "1-0"]
[WhiteElo "3094"]
[BlackElo "2580"]
[TimeControl "180+1"]
[EndTime "10:18:41 PDT"]
[Termination "Duhless won by resignation"]

1. d4 {[%clk 0:03:00.9]} 1... Nf6 {[%clk 0:02:52.4]} 2. Nf3 {[%clk 0:02:58.3]}
2... b6 {[%clk 0:02:50.7]} 3. Bg5 {[%clk 0:02:57.2]} 3... e6 {[%clk 0:02:50]} 4.
e4 {[%clk 0:02:56.6]} 4... Be7 {[%clk 0:02:49.4]} 5. Bd3 {[%clk 0:02:54.9]} 5...
Bb7 {[%clk 0:02:49.8]} 6. Nbd2 {[%clk 0:02:54.3]} 6... h6 {[%clk 0:02:47.5]} 7.
Bxf6 {[%clk 0:02:49.7]} 7... Bxf6 {[%clk 0:02:48.4]} 8. Qe2 {[%clk 0:02:49.9]}
8... d6 {[%clk 0:02:42.2]} 9. c3 {[%clk 0:02:47.9]} 9... Nd7 {[%clk 0:02:42]}
10. O-O-O {[%clk 0:02:36.2]} 10... e5 {[%clk 0:02:29.5]} 11. Kb1 {[%clk
0:02:30.9]} 11... a6 {[%clk 0:02:26.1]} 12. Nc4 {[%clk 0:02:23.1]} 12... exd4
{[%clk 0:02:16.7]} 13. cxd4 {[%clk 0:02:19.2]} 13... O-O {[%clk 0:02:17]} 14. e5
{[%clk 0:02:10]} 14... Re8 {[%clk 0:02:07]} 15. Qc2 {[%clk 0:02:06.2]} 15... b5
{[%clk 0:01:23.1]} 16. Na5 {[%clk 0:01:27]} 16... Bxf3 {[%clk 0:01:22.2]} 17.
gxf3 {[%clk 0:01:26.4]} 17... dxe5 {[%clk 0:01:11.7]} 18. Nc6 {[%clk 0:00:52]}
18... Qc8 {[%clk 0:01:09.9]} 19. dxe5 {[%clk 0:00:52]} 19... Nxe5 {[%clk
0:01:02.2]} 20. Bf5 {[%clk 0:00:50.7]} 20... Qb7 {[%clk 0:01:00.7]} 21. Be4
{[%clk 0:00:50.4]} 21... Qb6 {[%clk 0:00:46.3]} 22. Nxe5 {[%clk 0:00:47.2]}
22... Bxe5 {[%clk 0:00:47.2]} 23. Bxa8 {[%clk 0:00:47.2]} 23... Rxa8 {[%clk
0:00:47.8]} 24. Qe4 {[%clk 0:00:46.2]} 24... Qg6 {[%clk 0:00:24.7]} 25. Rd3
{[%clk 0:00:45]} 25... Qxe4 {[%clk 0:00:22.4]} 26. fxe4 {[%clk 0:00:44.7]} 26...
Bd6 {[%clk 0:00:22.9]} 27. h3 {[%clk 0:00:40.5]} 27... Re8 {[%clk 0:00:22.9]}
28. f3 {[%clk 0:00:40]} 28... Re5 {[%clk 0:00:21.5]} 29. Rd5 {[%clk 0:00:38.8]}
29... Re6 {[%clk 0:00:14.4]} 30. Rc1 {[%clk 0:00:36.7]} 30... Rg6 {[%clk
0:00:13.6]} 31. e5 {[%clk 0:00:32.2]} 31... Bb4 {[%clk 0:00:07.1]} 32. Rxc7
{[%clk 0:00:30]} 32... Rg3 {[%clk 0:00:03.3]} 33. Rd8+ {[%clk 0:00:28.7]} 33...
Kh7 {[%clk 0:00:03.3]} 34. Rxf7 {[%clk 0:00:28.6]} 34... Kg6 {[%clk 0:00:01.9]}
35. e6 {[%clk 0:00:25.7]} 35... Rxh3 {[%clk 0:00:02.3]} 36. Rg8 {[%clk
0:00:19.8]} 36... Rh1+ {[%clk 0:00:02.5]} 37. Kc2 {[%clk 0:00:19.5]} 37... Rh2+
{[%clk 0:00:01.6]} 38. Kd3 {[%clk 0:00:18.2]} 1-0

[Event "*** Titled Tuesday Blitz"]
[Site "Chess.com"]
[Date "2020.05.12"]
[Round "2"]
[White "zmarian"]
[Black "Kotofeyca"]
[Result "0-1"]
[WhiteElo "2145"]
[BlackElo "2415"]
[TimeControl "180+1"]
[EndTime "10:18:41 PDT"]
[Termination "Kotofeyca won on time"]

1. g3 {[%clk 0:03:00.9]} 1... d5 {[%clk 0:02:57.8]} 2. Bg2 {[%clk 0:02:59.7]}
2... c6 {[%clk 0:02:58.7]} 3. c4 {[%clk 0:02:58.5]} 3... Nf6 {[%clk 0:02:57.8]}
4. Nf3 {[%clk 0:02:53.2]} 4... a6 {[%clk 0:02:56.9]} 5. b3 {[%clk 0:02:50.6]}
5... Bg4 {[%clk 0:02:55.4]} 6. Qc2 {[%clk 0:02:45.5]} 6... Nbd7 {[%clk
0:02:49.9]} 7. d3 {[%clk 0:02:44.5]} 7... e6 {[%clk 0:02:49.7]} 8. Nbd2 {[%clk
0:02:43.4]} 8... Bc5 {[%clk 0:02:42.3]} 9. O-O {[%clk 0:02:41.6]} 9... Qe7
{[%clk 0:02:42.3]} 10. Bb2 {[%clk 0:02:36.5]} 10... O-O {[%clk 0:02:41.8]} 11.
a3 {[%clk 0:02:33.4]} 11... a5 {[%clk 0:02:41.5]} 12. d4 {[%clk 0:02:12.3]}
12... Bd6 {[%clk 0:02:39.6]} 13. c5 {[%clk 0:02:11.7]} 13... Bc7 {[%clk
0:02:39.1]} 14. b4 {[%clk 0:02:10.6]} 14... e5 {[%clk 0:02:30.6]} 15. Nxe5
{[%clk 0:02:00.5]} 15... Nxe5 {[%clk 0:02:31.5]} 16. dxe5 {[%clk 0:01:59]} 16...
Bxe5 {[%clk 0:02:31.4]} 17. e3 {[%clk 0:01:55.2]} 17... Bf5 {[%clk 0:01:59.8]}
18. Qxf5 {[%clk 0:01:38.4]} 18... Bxb2 {[%clk 0:01:59.4]} 19. Ra2 {[%clk
0:01:38.1]} 19... Bc3 {[%clk 0:01:51.6]} 20. bxa5 {[%clk 0:01:22.2]} 20... Rxa5
{[%clk 0:01:44.6]} 21. Nb3 {[%clk 0:01:21.8]} 21... Ra4 {[%clk 0:01:35.1]} 22.
Qc2 {[%clk 0:01:20.8]} 22... Be5 {[%clk 0:01:30.4]} 23. Rb1 {[%clk 0:00:56.1]}
23... Rfa8 {[%clk 0:01:29.8]} 24. Nd4 {[%clk 0:00:55]} 24... Bxd4 {[%clk
0:01:22.2]} 25. exd4 {[%clk 0:00:54.5]} 25... Rxd4 {[%clk 0:01:22.2]} 26. Rab2
{[%clk 0:00:51.2]} 26... Rc4 {[%clk 0:01:12.2]} 27. Qd3 {[%clk 0:00:46]} 27...
Ra7 {[%clk 0:01:03.6]} 28. Bh3 {[%clk 0:00:34]} 28... Qxc5 {[%clk 0:01:00.2]}
29. Rxb7 {[%clk 0:00:31.2]} 29... Rc1+ {[%clk 0:00:45.1]} 30. Kg2 {[%clk
0:00:27.1]} 30... Rxb7 {[%clk 0:00:44.1]} 31. Rxb7 {[%clk 0:00:26.1]} 31... g6
{[%clk 0:00:43.2]} 32. Rb8+ {[%clk 0:00:24.3]} 32... Kg7 {[%clk 0:00:42.9]} 33.
Rb1 {[%clk 0:00:18.3]} 33... Rxb1 {[%clk 0:00:36.4]} 34. Qxb1 {[%clk 0:00:17.5]}
34... Qxa3 {[%clk 0:00:37.3]} 35. Bc8 {[%clk 0:00:16.2]} 35... Qd6 {[%clk
0:00:30.4]} 36. h3 {[%clk 0:00:15.5]} 36... c5 {[%clk 0:00:30.4]} 37. Qb2 {[%clk
0:00:14.6]} 37... d4 {[%clk 0:00:29.3]} 38. Bb7 {[%clk 0:00:13.6]} 38... c4
{[%clk 0:00:26]} 39. Bf3 {[%clk 0:00:13.3]} 39... Qe5 {[%clk 0:00:20]} 40. g4
{[%clk 0:00:12.4]} 40... Nd5 {[%clk 0:00:19]} 41. Kg1 {[%clk 0:00:09.1]} 41...
Nf4 {[%clk 0:00:19.1]} 42. Qc1 {[%clk 0:00:05.8]} 42... g5 {[%clk 0:00:18.5]}
43. Bg2 {[%clk 0:00:04.3]} 43... d3 {[%clk 0:00:18.7]} 44. Bf3 {[%clk
0:00:03.5]} 44... c3 {[%clk 0:00:18.9]} 0-1

[Event "*** Titled Tuesday Blitz"]
[Site "Chess.com"]
[Date "2020.05.12"]
[Round "2"]
[White "ulkaf961"]
[Black "sergeikim"]
[Result "1-0"]
[WhiteElo "2194"]
[BlackElo "2406"]
[TimeControl "180+1"]
[EndTime "10:18:43 PDT"]
[Termination "ulkaf961 won by resignation"]

1. e4 {[%clk 0:03:00.9]} 1... e5 {[%clk 0:02:59.6]} 2. Nf3 {[%clk 0:03:00.9]}
2... Nc6 {[%clk 0:02:59.6]} 3. d4 {[%clk 0:03:00.7]} 3... exd4 {[%clk
0:02:58.1]} 4. Nxd4 {[%clk 0:03:00.4]} 4... Bc5 {[%clk 0:02:58]} 5. Nxc6 {[%clk
0:02:58.9]} 5... Qf6 {[%clk 0:02:57.5]} 6. Qd2 {[%clk 0:02:58.9]} 6... dxc6
{[%clk 0:02:57.7]} 7. Nc3 {[%clk 0:02:55.3]} 7... Be6 {[%clk 0:02:57.1]} 8. Na4
{[%clk 0:02:52.5]} 8... Be7 {[%clk 0:02:56.4]} 9. Bd3 {[%clk 0:02:49.4]} 9...
O-O-O {[%clk 0:02:50.3]} 10. Qa5 {[%clk 0:02:48.2]} 10... Kb8 {[%clk 0:02:49]}
11. Be3 {[%clk 0:02:30.8]} 11... b6 {[%clk 0:02:48.4]} 12. Qc3 {[%clk
0:02:29.3]} 12... Qxc3+ {[%clk 0:02:41.4]} 13. Nxc3 {[%clk 0:02:27.7]} 13... Nf6
{[%clk 0:02:41.3]} 14. h3 {[%clk 0:02:15.9]} 14... c5 {[%clk 0:02:32.4]} 15. a4
{[%clk 0:02:09.7]} 15... c4 {[%clk 0:02:31.8]} 16. Be2 {[%clk 0:02:08.9]} 16...
Bb4 {[%clk 0:02:30.7]} 17. Bf3 {[%clk 0:01:59]} 17... Nd7 {[%clk 0:02:28.3]} 18.
O-O {[%clk 0:01:52.7]} 18... Ne5 {[%clk 0:02:27.9]} 19. Be2 {[%clk 0:01:49.4]}
19... Nc6 {[%clk 0:02:21]} 20. Nd5 {[%clk 0:01:41.2]} 20... Bxd5 {[%clk
0:02:10.9]} 21. exd5 {[%clk 0:01:40.8]} 21... Rxd5 {[%clk 0:02:10.9]} 22. Bf3
{[%clk 0:01:40.8]} 22... Rd6 {[%clk 0:02:08.8]} 23. Bf4 {[%clk 0:01:40.6]} 23...
Rf6 {[%clk 0:02:05.7]} 24. Bg5 {[%clk 0:01:23.6]} 24... Rg6 {[%clk 0:02:05.5]}
25. Bf4 {[%clk 0:01:22]} 25... Bd6 {[%clk 0:01:42]} 26. Be3 {[%clk 0:01:05.3]}
26... Na5 {[%clk 0:01:33.7]} 27. Rfd1 {[%clk 0:01:00.1]} 27... Re8 {[%clk
0:01:25.4]} 28. Bd5 {[%clk 0:00:51.8]} 28... Rf6 {[%clk 0:01:19.9]} 29. Bd4
{[%clk 0:00:49.4]} 29... Rf5 {[%clk 0:01:12.7]} 30. Bxg7 {[%clk 0:00:48.3]}
30... Re2 {[%clk 0:01:04.5]} 31. Bf3 {[%clk 0:00:20.6]} 31... Rxc2 {[%clk
0:01:03]} 32. Be4 {[%clk 0:00:20.2]} 32... Rfxf2 {[%clk 0:01:01.4]} 33. Bxc2
{[%clk 0:00:20]} 33... Rxc2 {[%clk 0:01:00.3]} 34. Rf1 {[%clk 0:00:20.2]} 34...
Bc5+ {[%clk 0:00:50.6]} 35. Kh1 {[%clk 0:00:20.2]} 35... Bf2 {[%clk 0:00:49.8]}
36. Rac1 {[%clk 0:00:19]} 36... Re2 {[%clk 0:00:46.1]} 37. Bc3 {[%clk
0:00:18.8]} 37... Nb3 {[%clk 0:00:43.9]} 38. Rcd1 {[%clk 0:00:19.4]} 38... Nc5
{[%clk 0:00:40.6]} 39. Rd8+ {[%clk 0:00:18.8]} 39... Kb7 {[%clk 0:00:39.8]} 40.
Rf8 {[%clk 0:00:19]} 40... Nd3 {[%clk 0:00:35.5]} 41. Rxf7 {[%clk 0:00:18.3]}
41... Bc5 {[%clk 0:00:34.4]} 42. Rxh7 {[%clk 0:00:16.7]} 42... Nf2+ {[%clk
0:00:33.4]} 43. Rxf2 {[%clk 0:00:15.6]} 43... Bxf2 {[%clk 0:00:31.3]} 44. g4
{[%clk 0:00:14.4]} 44... Bg3 {[%clk 0:00:30.6]} 45. g5 {[%clk 0:00:14.1]} 45...
Re6 {[%clk 0:00:24.3]} 46. Rh6 {[%clk 0:00:14.1]} 46... Re2 {[%clk 0:00:21]} 47.
g6 {[%clk 0:00:13.5]} 47... Bf4 {[%clk 0:00:20]} 48. Rh8 {[%clk 0:00:12.3]}
48... Re7 {[%clk 0:00:16.8]} 49. g7 {[%clk 0:00:12.2]} 1-0

[Event "*** Titled Tuesday Blitz"]
[Site "Chess.com"]
[Date "2020.05.12"]
[Round "2"]
[White "Olga_Girya"]
[Black "top_bu_tz"]
[Result "0-1"]
[WhiteElo "2416"]
[BlackElo "2215"]
[TimeControl "180+1"]
[EndTime "10:18:44 PDT"]
[Termination "top_bu_tz won on time"]

1. d4 {[%clk 0:03:00.9]} 1... Nf6 {[%clk 0:02:59.5]} 2. c4 {[%clk 0:03:00.5]}
2... g6 {[%clk 0:02:59.3]} 3. Nc3 {[%clk 0:03:00.5]} 3... Bg7 {[%clk 0:02:59.9]}
4. e4 {[%clk 0:03:00.6]} 4... d6 {[%clk 0:03:00.6]} 5. Be2 {[%clk 0:03:00.6]}
5... O-O {[%clk 0:03:00.4]} 6. Be3 {[%clk 0:03:00.7]} 6... e5 {[%clk 0:02:59.7]}
7. d5 {[%clk 0:03:00.6]} 7... Nbd7 {[%clk 0:02:58]} 8. Nf3 {[%clk 0:02:40.2]}
8... Ne8 {[%clk 0:02:57.5]} 9. Nd2 {[%clk 0:02:39.1]} 9... f5 {[%clk 0:02:57.5]}
10. f3 {[%clk 0:02:32.5]} 10... Nef6 {[%clk 0:02:48.9]} 11. O-O {[%clk
0:02:31.8]} 11... f4 {[%clk 0:02:49]} 12. Bf2 {[%clk 0:02:31.9]} 12... g5 {[%clk
0:02:49.3]} 13. b4 {[%clk 0:02:31]} 13... Rf7 {[%clk 0:02:45.9]} 14. c5 {[%clk
0:02:30.5]} 14... Nf8 {[%clk 0:02:45.4]} 15. cxd6 {[%clk 0:02:21.8]} 15... cxd6
{[%clk 0:02:45.4]} 16. Nc4 {[%clk 0:02:09.3]} 16... Ng6 {[%clk 0:02:35.1]} 17.
Nb5 {[%clk 0:02:07.3]} 17... Bf8 {[%clk 0:02:34.2]} 18. Nxa7 {[%clk 0:02:05.6]}
18... Bd7 {[%clk 0:02:31.9]} 19. Nb6 {[%clk 0:01:59.2]} 19... Rxa7 {[%clk
0:02:18.5]} 20. Nxd7 {[%clk 0:01:59]} 20... Rxd7 {[%clk 0:02:19.1]} 21. Bxa7
{[%clk 0:01:58.4]} 21... b6 {[%clk 0:02:19.7]} 22. Bxb6 {[%clk 0:01:19.3]} 22...
Qxb6+ {[%clk 0:02:16.3]} 23. Kh1 {[%clk 0:01:20.2]} 23... h5 {[%clk 0:01:48.1]}
24. a4 {[%clk 0:01:16.6]} 24... Qb7 {[%clk 0:01:49]} 25. a5 {[%clk 0:01:11.7]}
25... Qxb4 {[%clk 0:01:47.1]} 26. a6 {[%clk 0:01:06]} 26... Qb6 {[%clk
0:01:45.3]} 27. Qb1 {[%clk 0:00:52.8]} 27... Qe3 {[%clk 0:01:30.8]} 28. Qd3
{[%clk 0:00:49.2]} 28... Qb6 {[%clk 0:01:12.2]} 29. Rfb1 {[%clk 0:00:48.7]}
29... Qf2 {[%clk 0:01:12.1]} 30. Rb7 {[%clk 0:00:44]} 30... g4 {[%clk
0:00:51.6]} 31. Rxd7 {[%clk 0:00:39.9]} 31... Nh4 {[%clk 0:00:46.7]} 32. Rg1
{[%clk 0:00:38.4]} 32... Nxd7 {[%clk 0:00:36.2]} 33. fxg4 {[%clk 0:00:37.2]}
33... Nc5 {[%clk 0:00:23]} 34. Qh3 {[%clk 0:00:26.8]} 34... Nxe4 {[%clk
0:00:21.5]} 35. Bd3 {[%clk 0:00:16.7]} 35... Ng5 {[%clk 0:00:09.8]} 36. Qxh4
{[%clk 0:00:12.9]} 36... Qxh4 {[%clk 0:00:09.2]} 37. a7 {[%clk 0:00:13.3]} 37...
hxg4 {[%clk 0:00:06.1]} 38. g3 {[%clk 0:00:12.4]} 38... fxg3 {[%clk 0:00:04.9]}
39. Rxg3 {[%clk 0:00:12.6]} 39... Nf3 {[%clk 0:00:03]} 40. Rxf3 {[%clk
0:00:01.2]} 40... gxf3 {[%clk 0:00:03.3]} 0-1

[Event "*** Titled Tuesday Blitz"]
[Site "Chess.com"]
[Date "2020.05.12"]
[Round "2"]
[White "Too_Stupid_To_Play"]
[Black "Shuvalov"]
[Result "0-1"]
[WhiteElo "2243"]
[BlackElo "2465"]
[TimeControl "180+1"]
[EndTime "10:18:47 PDT"]
[Termination "Shuvalov won on time"]

1. c4 {[%clk 0:03:00.9]} 1... c6 {[%clk 0:02:58.7]} 2. Nc3 {[%clk 0:02:59.2]}
2... d5 {[%clk 0:02:58.6]} 3. e3 {[%clk 0:02:58.6]} 3... Nf6 {[%clk 0:02:58.2]}
4. Nf3 {[%clk 0:02:57.9]} 4... a6 {[%clk 0:02:57.2]} 5. b3 {[%clk 0:02:56.3]}
5... Bf5 {[%clk 0:02:56.5]} 6. Bb2 {[%clk 0:02:51.8]} 6... e6 {[%clk 0:02:56.2]}
7. Be2 {[%clk 0:02:50.1]} 7... h6 {[%clk 0:02:56]} 8. O-O {[%clk 0:02:50]} 8...
Nbd7 {[%clk 0:02:55]} 9. d4 {[%clk 0:02:49.9]} 9... Bb4 {[%clk 0:02:54.1]} 10.
Rc1 {[%clk 0:02:49.2]} 10... O-O {[%clk 0:02:53.3]} 11. a3 {[%clk 0:02:49.3]}
11... Bd6 {[%clk 0:02:49.9]} 12. b4 {[%clk 0:02:49.4]} 12... Qe7 {[%clk
0:02:45.4]} 13. Bd3 {[%clk 0:02:28.4]} 13... Bxd3 {[%clk 0:02:44.1]} 14. Qxd3
{[%clk 0:02:29.3]} 14... dxc4 {[%clk 0:02:43.4]} 15. Qxc4 {[%clk 0:02:29]} 15...
e5 {[%clk 0:02:37.2]} 16. dxe5 {[%clk 0:02:08]} 16... Nxe5 {[%clk 0:02:36.5]}
17. Nxe5 {[%clk 0:02:07.8]} 17... Qxe5 {[%clk 0:02:36.2]} 18. g3 {[%clk
0:02:05.3]} 18... Rad8 {[%clk 0:02:28.5]} 19. Na4 {[%clk 0:01:57]} 19... Qf5
{[%clk 0:02:10]} 20. Nc5 {[%clk 0:01:55.9]} 20... Rb8 {[%clk 0:01:52]} 21. Bxf6
{[%clk 0:01:47.1]} 21... gxf6 {[%clk 0:01:50]} 22. Rfd1 {[%clk 0:01:41.5]} 22...
Rfd8 {[%clk 0:01:48.1]} 23. Rd4 {[%clk 0:01:29.8]} 23... Bxc5 {[%clk 0:01:44.2]}
24. Rg4+ {[%clk 0:01:28.2]} 24... Kf8 {[%clk 0:01:38.9]} 25. bxc5 {[%clk
0:01:19.7]} 25... Rd2 {[%clk 0:01:25.3]} 26. Rf4 {[%clk 0:01:18.1]} 26... Qe5
{[%clk 0:01:23.3]} 27. Rb1 {[%clk 0:01:03.8]} 27... Rd7 {[%clk 0:01:13.2]} 28.
Qc2 {[%clk 0:00:53.3]} 28... Kg7 {[%clk 0:01:03.1]} 29. Qe2 {[%clk 0:00:41.4]}
29... Rbd8 {[%clk 0:00:54.3]} 30. Rbb4 {[%clk 0:00:28]} 30... Rd1+ {[%clk
0:00:46.9]} 31. Kg2 {[%clk 0:00:27.5]} 31... Qd5+ {[%clk 0:00:47.2]} 32. e4
{[%clk 0:00:19.1]} 32... Qxc5 {[%clk 0:00:40.5]} 33. Qg4+ {[%clk 0:00:12.1]}
33... Qg5 {[%clk 0:00:39.1]} 34. Qf3 {[%clk 0:00:12.6]} 34... h5 {[%clk
0:00:33.5]} 35. Rf5 {[%clk 0:00:11.4]} 35... Qg4 {[%clk 0:00:29.6]} 36. Rxh5
{[%clk 0:00:05.7]} 36... Qxf3+ {[%clk 0:00:29.3]} 37. Kxf3 {[%clk 0:00:06.6]}
37... b5 {[%clk 0:00:26.2]} 38. Rc5 {[%clk 0:00:02.6]} 38... R8d6 {[%clk
0:00:24.8]} 39. Rb3 {[%clk 0:00:01.9]} 39... R1d3+ {[%clk 0:00:24]} 40. Rxd3
{[%clk 0:00:02.3]} 40... Rxd3+ {[%clk 0:00:24.6]} 41. Kg2 {[%clk 0:00:02.8]}
41... Rxa3 {[%clk 0:00:24.6]} 42. Rxc6 {[%clk 0:00:03.3]} 42... b4 {[%clk
0:00:25.2]} 43. Rb6 {[%clk 0:00:03.4]} 43... b3 {[%clk 0:00:25.2]} 44. f3 {[%clk
0:00:03]} 44... a5 {[%clk 0:00:22.2]} 45. h4 {[%clk 0:00:02.9]} 45... a4 {[%clk
0:00:22.3]} 46. Kh3 {[%clk 0:00:03.2]} 46... Ra2 {[%clk 0:00:22.7]} 47. h5
{[%clk 0:00:03.3]} 47... b2 {[%clk 0:00:22.8]} 48. Kg4 {[%clk 0:00:03.5]} 48...
a3 {[%clk 0:00:22.8]} 49. f4 {[%clk 0:00:02.1]} 49... Ra1 {[%clk 0:00:22.9]} 0-1

[Event "*** Titled Tuesday Blitz"]
[Site "Chess.com"]
[Date "2020.05.12"]
[Round "2"]
[White "DivyaDeshmukh23"]
[Black "narutosmith"]
[Result "1-0"]
[WhiteElo "2465"]
[BlackElo "2247"]
[TimeControl "180+1"]
[EndTime "10:18:49 PDT"]
[Termination "DivyaDeshmukh23 won on time"]

1. e4 {[%clk 0:03:00.9]} 1... c5 {[%clk 0:02:59.9]} 2. Nf3 {[%clk 0:02:59.3]}
2... e6 {[%clk 0:03:00.3]} 3. d4 {[%clk 0:02:59.6]} 3... cxd4 {[%clk 0:03:01.2]}
4. Nxd4 {[%clk 0:03:00.5]} 4... Nc6 {[%clk 0:03:01.8]} 5. Nc3 {[%clk 0:02:59.2]}
5... Qc7 {[%clk 0:03:02.2]} 6. Be3 {[%clk 0:02:59.2]} 6... a6 {[%clk 0:03:02.3]}
7. Be2 {[%clk 0:02:58.9]} 7... Nf6 {[%clk 0:03:02.1]} 8. O-O {[%clk 0:02:52.7]}
8... Be7 {[%clk 0:02:59.7]} 9. f4 {[%clk 0:02:51.8]} 9... d6 {[%clk 0:02:59.4]}
10. Bf3 {[%clk 0:02:51.3]} 10... O-O {[%clk 0:02:57.5]} 11. Qe2 {[%clk
0:02:50.9]} 11... Nxd4 {[%clk 0:02:53.4]} 12. Bxd4 {[%clk 0:02:50.5]} 12... e5
{[%clk 0:02:54.1]} 13. Be3 {[%clk 0:02:47.7]} 13... exf4 {[%clk 0:02:53.9]} 14.
Bxf4 {[%clk 0:02:47.4]} 14... Be6 {[%clk 0:02:54.3]} 15. Kh1 {[%clk 0:02:45.5]}
15... Bc4 {[%clk 0:02:49.5]} 16. Qf2 {[%clk 0:02:44.3]} 16... Bxf1 {[%clk
0:02:49.3]} 17. Rxf1 {[%clk 0:02:45.2]} 17... Rac8 {[%clk 0:02:41.7]} 18. Qg3
{[%clk 0:02:44.5]} 18... Kh8 {[%clk 0:02:34]} 19. Rd1 {[%clk 0:02:42.5]} 19...
Rfd8 {[%clk 0:02:26.8]} 20. Bg5 {[%clk 0:02:38.5]} 20... Qc5 {[%clk 0:01:54.2]}
21. h4 {[%clk 0:02:06.7]} 21... h6 {[%clk 0:01:47.8]} 22. Bf4 {[%clk 0:02:03.1]}
22... Nh5 {[%clk 0:01:41.2]} 23. Qg4 {[%clk 0:01:03.9]} 23... Nxf4 {[%clk
0:01:33.5]} 24. Qxf4 {[%clk 0:01:04.8]} 24... Qe5 {[%clk 0:01:01.3]} 25. Qxf7
{[%clk 0:01:00.9]} 25... Rf8 {[%clk 0:00:51.2]} 26. Qg6 {[%clk 0:00:52.9]} 26...
Rf4 {[%clk 0:00:38.4]} 27. Rd5 {[%clk 0:00:29.5]} 27... Rxh4+ {[%clk 0:00:37.8]}
28. Kg1 {[%clk 0:00:29.5]} 28... Qh2+ {[%clk 0:00:36.5]} 29. Kf2 {[%clk
0:00:28.1]} 29... Rf8 {[%clk 0:00:29.8]} 30. Rf5 {[%clk 0:00:24.3]} 30... Bf6
{[%clk 0:00:20.3]} 31. Ne2 {[%clk 0:00:19.9]} 31... Be7 {[%clk 0:00:09.7]} 32.
Rxf8+ {[%clk 0:00:19.3]} 32... Bxf8 {[%clk 0:00:10.2]} 33. Qe8 {[%clk
0:00:19.6]} 33... Kg8 {[%clk 0:00:09.5]} 34. e5 {[%clk 0:00:19.7]} 34... Qxe5
{[%clk 0:00:08.5]} 35. Qg6 {[%clk 0:00:17.7]} 35... Rb4 {[%clk 0:00:07.2]} 36.
Qd3 {[%clk 0:00:15.5]} 36... Rxb2 {[%clk 0:00:06.5]} 37. Bd5+ {[%clk 0:00:15.3]}
37... Kh8 {[%clk 0:00:06.1]} 38. Qf3 {[%clk 0:00:15.2]} 38... Qf6 {[%clk
0:00:05.9]} 39. Nf4 {[%clk 0:00:14.7]} 39... Rxc2+ {[%clk 0:00:05.9]} 40. Kg1
{[%clk 0:00:13.3]} 40... Qd4+ {[%clk 0:00:05.3]} 41. Kh2 {[%clk 0:00:13.3]}
41... Qf6 {[%clk 0:00:04.1]} 42. Ng6+ {[%clk 0:00:12.7]} 1-0